Workbook

Sheet Summary
A3: Paragon Personal and Auto Finance (No.3) PLC
A5: Information as at the Principal Determination Date | B5: 2005-09-30 | C5: 2005-12-31 | D5: 2006-03-31 | E5: 2006-06-30 | F5: 2006-09-29 | G5: 2006-12-29 | H5: 2007-03-30 | I5: 2007-06-29 | J5: 2007-09-28 | K5: 2007-12-31 | L5: 2008-03-31 | M5: 2008-06-30 | N5: 2008-09-30 | O5: 2008-12-31 | P5: 2009-03-31 | Q5: 2009-06-30 | R5: 2009-09-30 | S5: 2009-12-31 | T5: 2010-03-31 | U5: 2010-06-30 | V5: 2010-09-30 | W5: 2010-12-31 | X5: 2011-03-31 | Y5: 2011-06-30 | Z5: 2011-09-30 | AA5: 2011-12-30 | AB5: 2012-03-30 | AC5: 2012-06-29 | AD5: 2012-09-28 | AE5: 2012-12-31 | AF5: 2013-03-28 | AG5: 2013-06-28 | AH5: 2013-09-30 | AI5: 2013-12-31 | AJ5: 2014-03-31 | AK5: 2014-06-30 | AL5: 2014-09-30 | AM5: 2014-12-31 | AN5: 2015-03-31 | AO5: 2015-06-30 | AP5: 2015-09-30 | AQ5: 2015-12-31 | AR5: 2016-03-31 | AS5: 2016-06-30 | AT5: 2016-09-30 | AU5: 2016-12-30
A6: Performing Asset Balance | B6: 406887 | C6: 414570 | D6: 400148 | E6: 374808 | F6: 370654 | G6: 391682 | H6: 388687 | I6: 384415 | J6: 378460 | K6: 369511 | L6: 370256 | M6: 357432 | N6: 353416 | O6: 357093 | P6: 363558 | Q6: 342513 | R6: 319702 | S6: 298297 | T6: 278926 | U6: 260252 | V6: 241790 | W6: 227781 | X6: 215018 | Y6: 202264 | Z6: 191133 | AA6: 180879 | AB6: 172102 | AC6: 163666 | AD6: 156123 | AE6: 149173 | AF6: 142832 | AG6: 136831 | AH6: 130487 | AI6: 124488 | AJ6: 118663 | AK6: 113462 | AL6: 108092 | AM6: 103535.906 | AN6: 98734.6641 | AO6: 94610.85123 | AP6: 90184.30762 | AQ6: 85684.26602 | AR6: 82196.44534 | AS6: 78019.99022 | AT6: 74028.32058 | AU6: 0
A7: Non Performing Asset Balance (equal to > 12 months arrears loans) | B7: 2623 | C7: 4135 | D7: 5704 | E7: 5706 | F7: 6461 | G7: 7060 | H7: 7687 | I7: 8640 | J7: 9221 | K7: 9590 | L7: 9867 | M7: 10213 | N7: 10170 | O7: 10680 | P7: 10311 | Q7: 11198 | R7: 11345 | S7: 12310 | T7: 10478 | U7: 11131 | V7: 11048 | W7: 11017 | X7: 11568 | Y7: 12140 | Z7: 12200 | AA7: 12970 | AB7: 13101 | AC7: 13134 | AD7: 13335 | AE7: 13744 | AF7: 14375 | AG7: 14912 | AH7: 14731 | AI7: 15111 | AJ7: 15280 | AK7: 14971 | AL7: 14600 | AM7: 14611 | AN7: 14576 | AO7: 14306 | AP7: 14276 | AQ7: 13993 | AR7: 13435 | AS7: 13174 | AT7: 12951 | AU7: 0
A8: Available Cash for Substitutions | B8: 43113 | C8: 35430 | D8: 49851 | E8: 75192 | F8: 79346 | G8: 58318 | H8: 61313 | I8: 65585 | J8: 71540 | K8: 80489 | L8: 79744 | M8: 92568 | N8: 96584 | O8: 92907 | P8: 3500 | Q8: 0 | R8: 0 | S8: 0 | T8: 0 | U8: 0 | V8: 0 | W8: 0 | X8: 0 | Y8: 0 | Z8: 0 | AA8: 0 | AB8: 0 | AC8: 0 | AD8: 0 | AE8: 0 | AF8: 0 | AG8: 0 | AH8: 0 | AI8: 0 | AJ8: 0 | AK8: 0 | AL8: 0 | AM8: 0 | AN8: 0 | AO8: 0 | AP8: 0 | AQ8: 0 | AR8: 0 | AS8: 0 | AT8: 0 | AU8: 0
A9: Total Assets | B9: =SUM(B6:B8) -> 452623 | C9: 454135 | D9: 455703 | E9: 455706 | F9: 456461 | G9: 457060 | H9: =SUM(H6:H8) -> 457687 | I9: 458640 | J9: 459221 | K9: 459590 | L9: 459867 | M9: 460213 | N9: 460170 | O9: 460680 | P9: 377369 | Q9: =SUM(Q6:Q8) -> 353711 | R9: 331047 | S9: 310607 | T9: 289404 | U9: 271383 | V9: 252838 | W9: 238798 | X9: 226586 | Y9: 214404 | Z9: 203333 | AA9: =SUM(AA6:AA8) -> 193849 | AB9: 185203 | AC9: 176800 | AD9: 169458 | AE9: 162917 | AF9: 157207 | AG9: =SUM(AG6:AG8) -> 151743 | AH9: 145218 | AI9: 139599 | AJ9: 133943 | AK9: 128433 | AL9: 122692 | AM9: =SUM(AM6:AM8) -> 118146.906 | AN9: 113310.6641 | AO9: =SUM(AO6:AO8) -> 108916.8512 | AP9: 104460.3076 | AQ9: =SUM(AQ6:AQ8) -> 99677.26602 | AR9: 95631.44534 | AS9: =SUM(AS6:AS8) -> 91193.99022 | AT9: =SUM(AT6:AT8) -> 86979.32058 | AU9: =SUM(AU6:AU8) -> 0
A10: Class A1 Notes | B10: 146000 | C10: 146000 | D10: 146000 | E10: 146000 | F10: 146000 | G10: 146000 | H10: 146000 | I10: 146000 | J10: 146000 | K10: 146000 | L10: 146000 | M10: 146000 | N10: 146000 | O10: 146000 | P10: 108625 | Q10: 97564 | R10: 87286 | S10: 77640 | T10: 68911 | U10: 60496 | V10: 52177 | W10: 45864 | X10: 42610 | Y10: 40082 | Z10: 37877 | AA10: 35844 | AB10: 34105 | AC10: 32433 | AD10: 30938 | AE10: 29561 | AF10: 28304 | AG10: 27115 | AH10: 25858 | AI10: 24669 | AJ10: 23514 | AK10: 22484 | AL10: 21420 | AM10: 20517 | AN10: 19565 | AO10: 18748 | AP10: 17871 | AQ10: 16979 | AR10: 16287 | AS10: 15460 | AT10: 14669 | AU10: 0
A11: Class A2 Notes | B11: 178000 | C11: 178000 | D11: 178000 | E11: 178000 | F11: 178000 | G11: 178000 | H11: 178000 | I11: 178000 | J11: 178000 | K11: 178000 | L11: 178000 | M11: 178000 | N11: 178000 | O11: 178000 | P11: 132433 | Q11: 118948 | R11: 106417 | S11: 94657 | T11: 84015 | U11: 73756 | V11: 63613 | W11: 55917 | X11: 51949 | Y11: 48868 | Z11: 46178 | AA11: 43701 | AB11: 41580 | AC11: 39542 | AD11: 37719 | AE11: 36040 | AF11: 34508 | AG11: 33058 | AH11: 31525 | AI11: 30076 | AJ11: 28668 | AK11: 27412 | AL11: 26114 | AM11: 25013 | AN11: 23853 | AO11: 22857 | AP11: 21787 | AQ11: 20700 | AR11: 19857 | AS11: 18848 | AT11: 17884 | AU11: 0
A12: Class B1 Notes | B12: 16000 | C12: 16000 | D12: 16000 | E12: 16000 | F12: 16000 | G12: 16000 | H12: 16000 | I12: 16000 | J12: 16000 | K12: 16000 | L12: 16000 | M12: 16000 | N12: 16000 | O12: 16000 | P12: 16000 | Q12: 16000 | R12: 16000 | S12: 16000 | T12: 16000 | U12: 16000 | V12: 16000 | W12: 16000 | X12: 15296 | Y12: 14389 | Z12: 13597 | AA12: 12868 | AB12: 12243 | AC12: 11643 | AD12: 11107 | AE12: 10612 | AF12: 10161 | AG12: 9734 | AH12: 9283 | AI12: 8856 | AJ12: 8442 | AK12: 8072 | AL12: 7690 | AM12: 7366 | AN12: 7024 | AO12: 6731 | AP12: 6416 | AQ12: 6096 | AR12: 5848 | AS12: 5551 | AT12: 5267 | AU12: 0
A13: Class B2 Notes | B13: 24500 | C13: 24500 | D13: 24500 | E13: 24500 | F13: 24500 | G13: 24500 | H13: 24500 | I13: 24500 | J13: 24500 | K13: 24500 | L13: 24500 | M13: 24500 | N13: 24500 | O13: 24500 | P13: 24500 | Q13: 24500 | R13: 24500 | S13: 24500 | T13: 24500 | U13: 24500 | V13: 24500 | W13: 24500 | X13: 23422 | Y13: 22033 | Z13: 20821 | AA13: 19704 | AB13: 18748 | AC13: 17829 | AD13: 17007 | AE13: 16250 | AF13: 15559 | AG13: 14906 | AH13: 14215 | AI13: 13561 | AJ13: 12927 | AK13: 12360 | AL13: 11775 | AM13: 11279 | AN13: 10756 | AO13: 10307 | AP13: 9825 | AQ13: 9334 | AR13: 8954 | AS13: 8500 | AT13: 8065 | AU13: 0
A14: Class C1 Notes | B14: 18000 | C14: 18000 | D14: 18000 | E14: 18000 | F14: 18000 | G14: 18000 | H14: 18000 | I14: 18000 | J14: 18000 | K14: 18000 | L14: 18000 | M14: 18000 | N14: 18000 | O14: 18000 | P14: 18000 | Q14: 18000 | R14: 18000 | S14: 18000 | T14: 18000 | U14: 18000 | V14: 18000 | W14: 18000 | X14: 17208 | Y14: 16188 | Z14: 15297 | AA14: 14476 | AB14: 13774 | AC14: 13099 | AD14: 12495 | AE14: 11939 | AF14: 11431 | AG14: 10951 | AH14: 10443 | AI14: 9963 | AJ14: 9497 | AK14: 9081 | AL14: 8651 | AM14: 8287 | AN14: 7902 | AO14: 7572 | AP14: 7218 | AQ14: 6858 | AR14: 6579 | AS14: 6245 | AT14: 5925 | AU14: 0
A15: Class C2 Notes | B15: 22500 | C15: 22500 | D15: 22500 | E15: 22500 | F15: 22500 | G15: 22500 | H15: 22500 | I15: 22500 | J15: 22500 | K15: 22500 | L15: 22500 | M15: 22500 | N15: 22500 | O15: 22500 | P15: 22500 | Q15: 22500 | R15: 22500 | S15: 22500 | T15: 22500 | U15: 22500 | V15: 22500 | W15: 22500 | X15: 21510 | Y15: 20235 | Z15: 19121 | AA15: 18095 | AB15: 17217 | AC15: 16373 | AD15: 15619 | AE15: 14924 | AF15: 14289 | AG15: 13689 | AH15: 13054 | AI15: 12454 | AJ15: 11871 | AK15: 11351 | AL15: 10814 | AM15: 10358 | AN15: 9878 | AO15: 9465 | AP15: 9023 | AQ15: 8572 | AR15: 8224 | AS15: 7806 | AT15: 7406 | AU15: 0
A16: Class D1 Notes | B16: 24500 | C16: 24500 | D16: 24500 | E16: 24500 | F16: 24500 | G16: 24500 | H16: 24500 | I16: 24500 | J16: 24500 | K16: 24500 | L16: 24500 | M16: 24500 | N16: 24500 | O16: 24500 | P16: 24500 | Q16: 24500 | R16: 24500 | S16: 24500 | T16: 24500 | U16: 24500 | V16: 24500 | W16: 24500 | X16: 23422 | Y16: 22033 | Z16: 20821 | AA16: 19704 | AB16: 18748 | AC16: 17829 | AD16: 17007 | AE16: 16250 | AF16: 15559 | AG16: 14906 | AH16: 14215 | AI16: 13561 | AJ16: 12927 | AK16: 12360 | AL16: 11775 | AM16: 11279 | AN16: 10756 | AO16: 10307 | AP16: 9825 | AQ16: 9334 | AR16: 8954 | AS16: 8500 | AT16: 8065 | AU16: 0
A17: Class D2 Notes | B17: 20500 | C17: 20500 | D17: 20500 | E17: 20500 | F17: 20500 | G17: 20500 | H17: 20500 | I17: 20500 | J17: 20500 | K17: 20500 | L17: 20500 | M17: 20500 | N17: 20500 | O17: 20500 | P17: 20500 | Q17: 20500 | R17: 20500 | S17: 20500 | T17: 20500 | U17: 20500 | V17: 20500 | W17: 20500 | X17: 19598 | Y17: 18436 | Z17: 17421 | AA17: 16487 | AB17: 15687 | AC17: 14918 | AD17: 14231 | AE17: 13597 | AF17: 13019 | AG17: 12472 | AH17: 11894 | AI17: 11347 | AJ17: 10816 | AK17: 10342 | AL17: 9853 | AM17: 9437 | AN17: 9000 | AO17: 8624 | AP17: 8221 | AQ17: 7810 | AR17: 7493 | AS17: 7112 | AT17: 6748 | AU17: 0
A18: Total Notes | B18: =SUM(B10:B17) -> 450000 | C18: 450000 | D18: 450000 | E18: 450000 | F18: 450000 | G18: 450000 | H18: 450000 | I18: 450000 | J18: 450000 | K18: 450000 | L18: 450000 | M18: 450000 | N18: 450000 | O18: 450000 | P18: 367058 | Q18: =SUM(Q10:Q17)+1 -> 342513 | R18: =SUM(R10:R17)-1 -> 319702 | S18: =SUM(S10:S17) -> 298297 | T18: =SUM(T10:T17) -> 278926 | U18: =SUM(U10:U17) -> 260252 | V18: =SUM(V10:V17) -> 241790 | W18: =SUM(W10:W17) -> 227781 | X18: =SUM(X10:X17)+3 -> 215018 | Y18: =SUM(Y10:Y17) -> 202264 | Z18: 191133 | AA18: 180879 | AB18: 172102 | AC18: 163666 | AD18: 156123 | AE18: =SUM(AE10:AE17) -> 149173 | AF18: =SUM(AF10:AF17)+2 -> 142832 | AG18: =SUM(AG10:AG17) -> 136831 | AH18: =SUM(AH10:AH17) -> 130487 | AI18: =SUM(AI10:AI17)+1 -> 124488 | AJ18: =SUM(AJ10:AJ17)+1 -> 118663 | AK18: =SUM(AK10:AK17) -> 113462 | AL18: =SUM(AL10:AL17) -> 108092 | AM18: =SUM(AM10:AM17) -> 103536 | AN18: =SUM(AN10:AN17)+1 -> 98735 | AO18: =SUM(AO10:AO17) -> 94611 | AP18: =SUM(AP10:AP17)-2 -> 90184 | AQ18: =SUM(AQ10:AQ17)+1 -> 85684 | AR18: =SUM(AR10:AR17) -> 82196 | AS18: =SUM(AS10:AS17)-2 -> 78020 | AT18: =SUM(AT10:AT17)-1 -> 74028 | AU18: 0
A19: Class B, C and D Notes as a % of the Total Notes | B19: =SUM(B12:B17)/B18 -> 0.28 | C19: 0.28 | D19: 0.28 | E19: 0.28 | F19: 0.28 | G19: 0.28 | H19: 0.28 | I19: 0.28 | J19: 0.28 | K19: 0.28 | L19: 0.28 | M19: 0.28 | N19: 0.28 | O19: 0.28 | P19: 0.3432700009 | Q19: 0.3678692488 | R19: 0.3941170215 | S19: 0.4223978116 | T19: 0.4517327176 | U19: 0.4841461353 | V19: 0.5211133628 | W19: 0.5531629065 | X19: 0.5602135635 | Y19: 0.5602282166 | Z19: 0.5602276949 | AA19: =SUM(AA12:AA17)/AA18 -> 0.5602308726 | AB19: 0.560231723 | AC19: 0.5602324246 | AD19: 0.5602377613 | AE19: 0.5602354313 | AF19: 0.5602245995 | AG19: =SUM(AG12:AG17)/AG18 -> 0.5602385424 | AH19: 0.5602397174 | AI19: 0.560230705 | AJ19: 0.56024203 | AK19: 0.5602404329 | AL19: 0.5602449765 | AM19: =SUM(AM12:AM17)/AM18 -> 0.560249575 | AN19: 0.5602471261 | AO19: =SUM(AO12:AO17)/AO18 -> 0.5602519792 | AP19: 0.5602767675 | AQ19: 0.5602446198 | AR19: 0.5602705728 | AS19: 0.5602922328 | AT19: 0.5602744907 | AU19: 0
A20: Total Overcollateralisation (equal to > 12 months arrears loans) | B20: =+B9-B18 -> 2623 | C20: 4135 | D20: 5703 | E20: 5706 | F20: 6461 | G20: 7060 | H20: 7687 | I20: =+I9-I18 -> 8640 | J20: 9221 | K20: 9590 | L20: 9867 | M20: 10213 | N20: 10170 | O20: =+O9-O18 -> 10680 | P20: 10311 | Q20: 11198 | R20: 11345 | S20: 12310 | T20: 10478 | U20: =+U9-U18 -> 11131 | V20: 11048 | W20: 11017 | X20: 11568 | Y20: 12140 | Z20: 12200 | AA20: =+AA9-AA18 -> 12970 | AB20: 13101 | AC20: 13134 | AD20: 13335 | AE20: 13744 | AF20: 14375 | AG20: =+AG9-AG18 -> 14912 | AH20: 14731 | AI20: 15111 | AJ20: 15280 | AK20: 14971 | AL20: 14600 | AM20: =+AM9-AM18 -> 14610.90603 | AN20: 14575.6641 | AO20: 14305.85123 | AP20: 14276.30762 | AQ20: 13993.26602 | AR20: =+AR9-AR18 -> 13435.44534 | AS20: =+AS9-AS18 -> 13173.99022 | AT20: =+AT9-AT18 -> 12951.32058 | AU20: =+AU9-AU18 -> 0
A21: Balance of the First Loss Fund | B21: 40500 | C21: 40500 | D21: 40500 | E21: 40500 | F21: 40500 | G21: 40500 | H21: 40500 | I21: 40500 | J21: 40500 | K21: 40500 | L21: 40500 | M21: 40500 | N21: 40500 | O21: 40500 | P21: 40500 | Q21: 40500 | R21: 40500 | S21: 40500 | T21: 40500 | U21: 40500 | V21: 40500 | W21: 40500 | X21: 40500 | Y21: 40500 | Z21: 40500 | AA21: 40500 | AB21: 40500 | AC21: 40500 | AD21: 40500 | AE21: 40500 | AF21: 40500 | AG21: 40500 | AH21: 40500 | AI21: 40500 | AJ21: 40500 | AK21: 40500 | AL21: 40500 | AM21: 40500 | AN21: 40500 | AO21: 40500 | AP21: 40500 | AQ21: 40500 | AR21: 40500 | AS21: 40500 | AT21: 40500 | AU21: 0
A22: First Loss Fund as a % of the Notes | B22: =+B21/B18 -> 0.09 | C22: 0.09 | D22: 0.09 | E22: 0.09 | F22: 0.09 | G22: 0.09 | H22: 0.09 | I22: 0.09 | J22: 0.09 | K22: 0.09 | L22: 0.09 | M22: 0.09 | N22: 0.09 | O22: 0.09 | P22: 0.110336786 | Q22: 0.1182436871 | R22: 0.1266804712 | S22: =+S21/S18 -> 0.1357707251 | T22: 0.1451998021 | U22: 0.1556184006 | V22: 0.1675007238 | W22: 0.1778023628 | X22: 0.1883563237 | Y22: 0.2002333584 | Z22: 0.2118943354 | AA22: =+AA21/AA18 -> 0.2239065895 | AB22: 0.2353255627 | AC22: 0.2474551831 | AD22: 0.2594108491 | AE22: 0.2714968526 | AF22: 0.2835499048 | AG22: =+AG21/AG18 -> 0.2959855588 | AH22: 0.3103757462 | AI22: 0.3253325622 | AJ22: 0.3413026807 | AK22: 0.3569477006 | AL22: 0.3746808274 | AM22: =+AM21/AM18 -> 0.3911682893 | AN22: 0.4101888895 | AO22: =+AO21/AO18 -> 0.4280686178 | AP22: 0.4490818771 | AQ22: =+AQ21/AQ18 -> 0.472667009 | AR22: 0.4927247068 | AS22: =+AS21/AS18 -> 0.5190976673 | AT22: 0.5470902902 | AU22: 0
A23: Lifetime Redemption Rate (All Assets) | B23: 0.397 | C23: 0.4171 | D23: 0.41 | E23: 0.4119 | F23: 0.4126 | G23: 0.4122 | H23: 0.4131 | I23: 0.4146 | J23: 0.4159 | K23: 0.4161 | L23: 0.4142 | M23: 0.4104 | N23: 0.4032 | O23: 0.3925 | P23: 0.3814 | Q23: 0.3721 | R23: 0.3639 | S23: 0.3566 | T23: 0.3498 | U23: 0.3437 | V23: 0.3383 | W23: 0.3324 | X23: 0.3264 | Y23: 0.3214 | Z23: 0.3163 | AA23: 0.3111 | AB23: 0.3061 | AC23: 0.3014 | AD23: 0.2967 | AE23: 0.2921 | AF23: 0.2873 | AG23: 0.2829 | AH23: 0.2794 | AI23: 0.2759 | AJ23: 0.2726 | AK23: 0.2697 | AL23: 0.2671 | AM23: 0.2642 | AN23: 0.2619 | AO23: 0.2595 | AP23: 0.2572 | AQ23: 0.2556 | AR23: 0.2535 | AS23: 0.252 | AT23: 0.2506 | AU23: 1
A24: Quarterly Redemption Rate (All Assets) | B24: 0.1883 | C24: 0.1184 | D24: 0.117 | E24: 0.1267 | F24: 0.1258 | G24: 0.1235 | H24: 0.1268 | I24: 0.1296 | J24: 0.1297 | K24: 0.1268 | L24: 0.1174 | M24: 0.1077 | N24: 0.0869 | O24: 0.0626 | P24: 0.053 | Q24: 0.0569 | R24: 0.0581 | S24: 0.0586 | T24: 0.0572 | U24: 0.0579 | V24: 0.0595 | W24: 0.052 | X24: 0.0475 | Y24: 0.0517 | Z24: 0.0483 | AA24: 0.0438 | AB24: 0.043 | AC24: 0.0422 | AD24: 0.0393 | AE24: 0.0375 | AF24: 0.0325 | AG24: 0.0342 | AH24: 0.0417 | AI24: 0.0397 | AJ24: 0.0393 | AK24: 0.0422 | AL24: 0.0448 | AM24: 0.0381 | AN24: 0.0448 | AO24: 0.0422 | AP24: 0.0422 | AQ24: 0.051 | AR24: 0.0422 | AS24: 0.0489 | AT24: 0.0506 | AU24: 1
A25: Total Quarterly Losses | B25: =SUM(B59:B68) -> 5911 | C25: 3929 | D25: 4570 | E25: 5629 | F25: 4672 | G25: 4302 | H25: 2955 | I25: =SUM(I59:I68) -> 3203 | J25: 2365 | K25: 2306 | L25: 2817 | M25: 2342 | N25: 4075 | O25: 2406 | P25: 2262 | Q25: 3575 | R25: =SUM(R59:R68) -> 2940 | S25: 2634 | T25: 2277 | U25: 2545 | V25: 3004 | W25: 1418 | X25: 1967 | Y25: 1611 | Z25: =SUM(Z59:Z68) -> 1327 | AA25: 1799 | AB25: 997 | AC25: 1168 | AD25: 1116 | AE25: 1088 | AF25: 1487 | AG25: =SUM(AG59:AG68) -> 1116 | AH25: 637 | AI25: 817 | AJ25: 930 | AK25: 195 | AL25: 282 | AM25: =SUM(AM59:AM68) -> 435 | AN25: =SUM(AN59:AN68) -> 164 | AO25: -40 | AP25: 262 | AQ25: -100 | AR25: -124 | AS25: =SUM(AS59:AS68) -> 161 | AT25: =SUM(AT59:AT68) -> 42 | AU25: =SUM(AU59:AU68) -> -154
A26: Quarterly Recoveries | C26: 603 | D26: 530 | E26: 711 | F26: 1064 | G26: 702 | H26: 576 | I26: 735 | J26: 810 | K26: 772 | L26: 924 | M26: 834 | N26: 759 | O26: 762 | P26: 601 | Q26: 580 | R26: 679 | S26: 465 | T26: 709 | U26: 663 | V26: 660 | W26: 630 | X26: 544 | Y26: 624 | Z26: 622 | AA26: 680 | AB26: 672 | AC26: 625 | AD26: 716 | AE26: 535 | AF26: 544 | AG26: 634 | AH26: 728 | AI26: 616 | AJ26: 670 | AK26: 793 | AL26: 845 | AM26: 674 | AN26: 723 | AO26: 898 | AP26: 875 | AQ26: 643 | AR26: 694 | AS26: 740 | AT26: 610 | AU26: 467
A27: Losses as a % of the assets | B27: =+B25/450000 -> 0.01313555556 | C27: =+C25/B9 -> 0.008680513363 | D27: 0.01006308697 | E27: 0.01235234352 | F27: 0.01025222402 | G27: 0.009424682503 | H27: 0.006465234324 | I27: 0.006998232416 | J27: 0.005156549799 | K27: 0.00502154736 | L27: 0.006129376183 | M27: 0.005092776825 | N27: 0.008854595589 | O27: 0.00522850251 | P27: 0.004910132847 | Q27: 0.009473486163 | R27: 0.008311870425 | S27: 0.007956574142 | T27: 0.007330807097 | U27: 0.008793935122 | V27: 0.01106922689 | W27: 0.00560833419 | X27: 0.008237087413 | Y27: 0.007109883223 | Z27: 0.006189250201 | AA27: 0.008847555488 | AB27: 0.005143178453 | AC27: 0.006306593306 | AD27: 0.006312217195 | AE27: 0.006420469969 | AF27: 0.009127347054 | AG27: 0.007098920532 | AH27: 0.004197887217 | AI27: 0.005626024322 | AJ27: 0.006661938839 | AK27: 0.001455843157 | AL27: 0.002195697367 | AM27: 0.003545463437 | AN27: 0.001388102368 | AO27: 0 | AP27: 0.002405504723 | AQ27: 0 | AR27: 0 | AS27: =+AS25/AR9 -> 0.001683546656 | AT27: =+AT25/AS9 -> 0.000460556665 | AU27: 0
A28: Quarterly Loss Rate (annualised) | B28: =1-(1-B25/450000)^4 -> 0.05151600132 | C28: =1-(1-C25/C9)^4 -> 0.03415993194 | D28: 0.03951444997 | E28: 0.048501094 | F28: 0.04031678011 | G28: 0.03712109967 | H28: 0.02557647551 | I28: =1-(1-I25/I9)^4 -> 0.02764349207 | J28: 0.02044151229 | K28: 0.01991951431 | L28: 0.02427851065 | M28: 0.02020093392 | N28: 0.03495395245 | O28: =1-(1-O25/O9)^4 -> 0.02072776562 | P28: 0.02376181464 | Q28: 0.03981968148 | R28: 0.03505322849 | S28: 0.03349163243 | T28: 0.03110209791 | U28: =1-(1-U25/U9)^4 -> 0.03698718341 | V28: 0.04668422369 | W28: 0.02354156473 | X28: 0.0342745718 | Y28: 0.02971835523 | Z28: 0.02585052 | AA28: =1-(1-AA25/AA9)^4 -> 0.03660810982 | AB28: 0.02135987334 | AC28: 0.0261646288 | AD28: 0.02608372238 | AE28: 0.02644658429 | AF28: 0.03730202157 | AG28: =1-(1-AG25/AG9)^4 -> 0.02909521368 | AH28: 0.01743092274 | AI28: 0.02320520151 | AJ28: 0.02748509201 | AK28: 0.006059388045 | AL28: 0.009162105091 | AM28: =1-(1-AM25/AM9)^4 -> 0.0146462906 | AN28: 0.005776836524 | AO28: 0 | AP28: 0.009994837584 | AQ28: 0 | AR28: 0 | AS28: =1-(1-AS25/AS9)^4 -> 0.007043189617 | AT28: 0.001930095038 | AU28: 0
A29: Spread Trap repayment in the quarter | B29: N/A | C29: N/A | D29: N/A | E29: N/A | F29: N/A | G29: N/A | H29: N/A | I29: N/A | J29: N/A | K29: N/A | L29: N/A | M29: N/A | N29: N/A | O29: N/A | P29: N/A | Q29: N/A | R29: N/A | S29: N/A | T29: N/A | U29: N/A | V29: N/A | W29: N/A | X29: N/A | Y29: N/A | Z29: N/A | AA29: N/A | AB29: N/A | AC29: N/A | AD29: N/A | AE29: N/A | AF29: N/A | AG29: N/A | AH29: N/A | AI29: N/A | AJ29: N/A | AK29: N/A | AL29: N/A | AM29: N/A | AN29: N/A | AO29: N/A | AP29: N/A | AQ29: N/A | AR29: N/A | AS29: N/A | AT29: N/A | AU29: N/A
A30: Quarterly surplus income to the Issuer | B30: 3926 | C30: 3354 | D30: 2999 | E30: 2066 | F30: 2721 | G30: 2492 | H30: 2477 | I30: 1600 | J30: 3019 | K30: 2344 | L30: 2128 | M30: 2405 | N30: 342 | O30: 691 | P30: 3343 | Q30: 2227 | R30: 2934 | S30: 3073 | T30: 3087 | U30: 2391 | V30: 1576 | W30: 2745 | X30: 2139 | Y30: 2377 | Z30: 2394 | AA30: 1674 | AB30: 2293 | AC30: 1984 | AD30: 1847 | AE30: 1755 | AF30: 1379 | AG30: 1634 | AH30: 1909 | AI30: 1647 | AJ30: 1496 | AK30: 2125 | AL30: 2028 | AM30: 1838 | AN30: 1858 | AO30: 2145 | AP30: 1911 | AQ30: 1712 | AR30: 1793 | AS30: 1718 | AT30: 1685 | AU30: 42063
A31: Surplus Income as a % of the assets | B31: =+B30/450000 -> 0.008724444444 | C31: =+C30/B9 -> 0.007410140448 | D31: 0.006603763198 | E31: 0.004533654595 | F31: 0.005970954958 | G31: 0.005459393026 | H31: 0.00541941977 | I31: 0.003495838859 | J31: 0.006582504797 | K31: 0.005104296189 | L31: 0.004630213886 | M31: 0.005229772956 | N31: 0.0007431341574 | O31: 0.001501618967 | P31: 0.007256664062 | Q31: =+Q30/P9 -> 0.005901385646 | R31: 0.008294907424 | S31: 0.009282669832 | T31: 0.009938604088 | U31: 0.008261807024 | V31: 0.005807290803 | W31: 0.01085675413 | X31: 0.008957361452 | Y31: 0.01049049809 | Z31: 0.01116583646 | AA31: 0.008232800382 | AB31: 0.01182879458 | AC31: 0.01071256945 | AD31: 0.01044683258 | AE31: 0.01035654853 | AF31: 0.008464432809 | AG31: =+AG30/AF9 -> 0.0103939392 | AH31: 0.01258048147 | AI31: 0.01134156923 | AJ31: 0.01071640914 | AK31: 0.01586495748 | AL31: 0.01579033426 | AM31: 0.01498060183 | AN31: 0.01572618414 | AO31: 0.01893025707 | AP31: 0.01754549437 | AQ31: 0.01638900018 | AR31: 0.01798805356 | AS31: 0.0179648022 | AT31: 0.01847709477 | AU31: 0
A32: % of Unsecured Personal Loans | B32: 0.1263 | C32: 0.1126 | D32: 0.1006 | E32: 0.0875 | F32: 0.0886 | G32: 0.0855 | H32: 0.0795 | I32: 0.0765 | J32: 0.0727 | K32: 0.0635 | L32: 0.0536 | M32: 0.0454 | N32: 0.0367 | O32: 0.0322 | P32: 0.0341 | Q32: 0.032 | R32: 0.03 | S32: 0.0282 | T32: 0.0267 | U32: 0.025 | V32: 0.0228 | W32: 0.0214 | X32: 0.0199 | Y32: 0.0187 | Z32: 0.0179 | AA32: 0.0171 | AB32: 0.0168 | AC32: 0.0158 | AD32: 0.0152 | AE32: 0.01466753367 | AF32: 0.0144 | AG32: 0.0144 | AH32: 0.0134 | AI32: 0.0132 | AJ32: 0.0127 | AK32: 0.0126 | AL32: 0.0123 | AM32: 0.01158613013 | AN32: 0.01140364187 | AO32: 0.01109162233 | AP32: 0.0109883527 | AQ32: 0.01083221603 | AR32: 0.01050580298 | AS32: 0.01063681741 | AT32: 0.01050355639 | AU32: 0
A33: % of Car Loans | B33: 0.2852 | C33: 0.2867 | D33: 0.2779 | E33: 0.2541 | F33: 0.2741 | G33: 0.2925 | H33: 0.2863 | I33: 0.2869 | J33: 0.2819 | K33: 0.2656 | L33: 0.2378 | M33: 0.2046 | N33: 0.1776 | O33: 0.1563 | P33: 0.1671 | Q33: 0.1518 | R33: 0.1366 | S33: 0.1234 | T33: 0.1094 | U33: 0.0931 | V33: 0.0778 | W33: 0.0641 | X33: 0.053 | Y33: 0.042 | Z33: 0.0328 | AA33: 0.0262 | AB33: 0.0208 | AC33: 0.0154 | AD33: 0.0123 | AE33: 0.01059843269 | AF33: 0.0096 | AG33: 0.0089 | AH33: 0.0078 | AI33: 0.0073 | AJ33: 0.0067 | AK33: 0.0057 | AL33: 0.0049 | AM33: 0.004503628141 | AN33: 0.003835413869 | AO33: 0.003363323507 | AP33: 0.003007490961 | AQ33: 0.002737824584 | AR33: 0.00239731036 | AS33: 0.002156939645 | AT33: 0.00174231509 | AU33: 0
A34: % of Secured Loans | B34: 0.4339 | C34: 0.4601 | D34: 0.4431 | E34: 0.4356 | F34: 0.3875 | G34: 0.4022 | H34: 0.4067 | I34: 0.3984 | J34: 0.3982 | K34: 0.4005 | L34: 0.4426 | M34: 0.4837 | N34: 0.531 | O34: 0.5779 | P34: 0.7642 | Q34: 0.796 | R34: 0.817 | S34: 0.8346 | T34: 0.8516 | U34: 0.871 | V34: 0.8898 | W34: 0.9063 | X34: 0.92 | Y34: 0.933 | Z34: 0.9438 | AA34: 0.9518 | AB34: 0.9582 | AC34: 0.9651 | AD34: 0.9693 | AE34: 0.9718581781 | AF34: 0.9733 | AG34: 0.9742 | AH34: 0.9763 | AI34: 0.9772 | AJ34: 0.9784 | AK34: 0.9796 | AL34: 0.9808 | AM34: 0.9819039637 | AN34: 0.9828070281 | AO34: 0.9836913321 | AP34: 0.9843362982 | AQ34: 0.9847758576 | AR34: 0.9855114649 | AS34: 0.9855992777 | AT34: 0.9861619075 | AU34: 0
A35: % of Retail Credit Loans | B35: 0.0587 | C35: 0.0619 | D35: 0.0676 | E35: 0.0558 | F35: 0.0735 | G35: 0.0902 | H35: 0.0913 | I35: 0.0924 | J35: 0.0882 | K35: 0.0915 | L35: 0.0887 | M35: 0.0606 | N35: 0.04 | O35: 0.0272 | P35: 0.0251 | Q35: 0.0202 | R35: 0.0164 | S35: 0.0138 | T35: 0.0123 | U35: 0.0109 | V35: 0.0096 | W35: 0.0082 | X35: 0.0071 | Y35: 0.0063 | Z35: 0.0055 | AA35: 0.0049 | AB35: 0.0042 | AC35: 0.0037 | AD35: 0.0032 | AE35: 0.00287585555 | AF35: 0.0027 | AG35: 0.0025 | AH35: 0.0025 | AI35: 0.0023 | AJ35: 0.0022 | AK35: 0.0021 | AL35: 0.002 | AM35: 0.002006277995 | AN35: 0.001953916203 | AO35: 0.001853722038 | AP35: 0.001667858123 | AQ35: 0.001654101816 | AR35: 0.001585421723 | AS35: 0.00160696521 | AT35: 0.001592221046 | AU35: 0
A36: % of Available Cash for Substitutions | B36: =1-B35-B34-B33-B32 -> 0.0959 | C36: 0.0787 | D36: 0.1108 | E36: 0.167 | F36: 0.1763 | G36: 0.1296 | H36: 0.1362 | I36: 0.1458 | J36: 0.159 | K36: 0.1789 | L36: 0.1773 | M36: 0.2057 | N36: 0.2147 | O36: 0.2064 | P36: 0.0095 | Q36: 0 | R36: 8.326672685e-17 | S36: -3.816391647e-17 | T36: 0 | U36: 0 | V36: -8.326672685e-17 | W36: 0 | X36: =1-X35-X34-X33-X32 -> -3.469446952e-17 | Y36: -2.775557562e-17 | Z36: 7.632783294e-17 | AA36: 0 | AB36: -3.122502257e-17 | AC36: 0 | AD36: =1-AD35-AD34-AD33-AD32 -> -3.122502257e-17 | AE36: 4.163336342e-17 | AF36: -8.847089727e-17 | AG36: 9.887923813e-17 | AH36: 1.075528555e-16 | AI36: 7.285838599e-17 | AJ36: =1-AJ35-AJ34-AJ33-AJ32 -> -2.775557562e-17 | AK36: =1-AK35-AK34-AK33-AK32 -> -1.734723476e-17 | AL36: 0 | AM36: 4.510281038e-17 | AN36: 9.194034423e-17 | AO36: 1.734723476e-17 | AP36: 0 | AQ36: 7.112366252e-17 | AR36: =1-AR35-AR34-AR33-AR32 -> -2.428612866e-17 | AS36: -6.071532166e-17 | AT36: =1-AT35-AT34-AT33-AT32 -> -4.163336342e-17 | AU36: 0
A37: Spread % (WA Funding Rate versus WA Interest Rate) | B37: 0.0541 | C37: 0.0522 | D37: 0.051 | E37: 0.0494 | F37: 0.0508 | G37: 0.0472 | H37: 0.0439 | I37: 0.0433 | J37: 0.0421 | K37: 0.0432 | L37: 0.0473 | M37: 0.0427 | N37: 0.0416 | O37: 0.0368 | P37: 0.0688 | Q37: 0.0755 | R37: 0.0805 | S37: 0.0843 | T37: 0.0835 | U37: 0.0784 | V37: 0.0769 | W37: 0.0761 | X37: 0.0752 | Y37: 0.0745 | Z37: 0.0743 | AA37: 0.0727 | AB37: 0.0714 | AC37: 0.0721 | AD37: 0.0739 | AE37: 0.0767 | AF37: 0.0769 | AG37: 0.0768 | AH37: 0.0767 | AI37: 0.0765 | AJ37: 0.0764 | AK37: 0.0764 | AL37: 0.076 | AM37: 0.0759 | AN37: 0.0758 | AO37: 0.0756 | AP37: 0.0754 | AQ37: 0.0753 | AR37: 0.0751 | AS37: 0.0748 | AT37: 0.0754 | AU37: 0
A38: WA Remaining Term (years) | B38: 9.26 | C38: 9.45 | D38: 9.4 | E38: 9.76 | F38: 9.13 | G38: 9.1 | H38: 9.21 | I38: 9.14 | J38: 9.22 | K38: 9.35 | L38: 9.89 | M38: 10.73 | N38: 11.54 | O38: 12.05 | P38: 12.44 | Q38: 12.58 | R38: 12.69 | S38: 12.75 | T38: 12.8 | U38: 12.895 | V38: 12.965 | W38: 13.03 | X38: 13.055 | Y38: 13.06 | Z38: 13.055 | AA38: 13.01 | AB38: 12.96 | AC38: 12.91 | AD38: 12.83 | AE38: 12.74 | AF38: 12.63 | AG38: 12.52 | AH38: 12.42 | AI38: 12.28 | AJ38: 12.16 | AK38: 12.04 | AL38: 11.92 | AM38: 11.80710802 | AN38: 11.67543058 | AO38: 11.57414148 | AP38: 11.44169581 | AQ38: 11.33171573 | AR38: 11.21499161 | AS38: 11.03659444 | AT38: 10.94275865 | AU38: 0
A40: <=1 months arrears
A41: Unsecured Personal Loans | B41: 0.8176 | C41: 0.8094 | D41: 0.8036 | E41: 0.8131 | F41: 0.8353 | G41: 0.8426 | H41: 0.8567 | I41: 0.8768 | J41: 0.8867 | K41: 0.888 | L41: 0.889495447 | M41: 0.8853 | N41: 0.8824 | O41: 0.8679 | P41: 0.8477 | Q41: 0.8328 | R41: 0.8313 | S41: 0.8284 | T41: 0.8202 | U41: 0.8248 | V41: 0.84 | W41: 0.833 | X41: 0.8268 | Y41: 0.8265 | Z41: 0.8185 | AA41: 0.8129 | AB41: 0.8186 | AC41: 0.8401 | AD41: 0.8205 | AE41: 0.825 | AF41: 0.8186 | AG41: 0.796 | AH41: 0.8317 | AI41: 0.8154 | AJ41: 0.8108 | AK41: 0.7974 | AL41: 0.8091 | AM41: 0.8418694759 | AN41: 0.8304468265 | AO41: 0.8353003198 | AP41: 0.8424886419 | AQ41: 0.8394572074 | AR41: 0.8378951234 | AS41: 0.8159448691 | AT41: 0.8108488876 | AU41: 0
A42: Car Loans | B42: 0.9833 | C42: 0.9779 | D42: 0.9772 | E42: 0.9746 | F42: 0.9803 | G42: 0.9783 | H42: 0.9775 | I42: 0.977 | J42: 0.9835 | K42: 0.9815 | L42: 0.9745324377 | M42: 0.9698 | N42: 0.967 | O42: 0.9568 | P42: 0.941 | Q42: 0.9343 | R42: 0.938 | S42: 0.9306 | T42: 0.9251 | U42: 0.9272 | V42: 0.9376 | W42: 0.9227 | X42: 0.9144 | Y42: 0.9106 | Z42: 0.9149 | AA42: 0.895 | AB42: 0.8747 | AC42: 0.86 | AD42: 0.8555 | AE42: 0.874 | AF42: 0.8721 | AG42: 0.8866 | AH42: 0.8642 | AI42: 0.8741 | AJ42: 0.8638 | AK42: 0.8413 | AL42: 0.8283 | AM42: 0.8077892849 | AN42: 0.7448755877 | AO42: 0.7389769046 | AP42: 0.7454771805 | AQ42: 0.7135366701 | AR42: 0.6684270962 | AS42: 0.623078751 | AT42: 0.5791859028 | AU42: 0
A43: Secured Loans | B43: 0.9281 | C43: 0.9253 | D43: 0.9247 | E43: 0.9176 | F43: 0.9059 | G43: 0.9086 | H43: 0.9106 | I43: 0.9098 | J43: 0.9133 | K43: 0.916 | L43: 0.9318150748 | M43: 0.9275 | N43: 0.9325 | O43: 0.9287 | P43: 0.9208 | Q43: 0.9149 | R43: 0.8982 | S43: 0.8863 | T43: 0.8819 | U43: 0.876 | V43: 0.8754 | W43: 0.8677 | X43: 0.8663 | Y43: 0.8653 | Z43: 0.8656 | AA43: 0.8627 | AB43: 0.8649 | AC43: 0.8629 | AD43: 0.8631 | AE43: 0.8555 | AF43: 0.8602 | AG43: 0.8571 | AH43: 0.8596 | AI43: 0.8582 | AJ43: 0.867 | AK43: 0.8698 | AL43: 0.8695 | AM43: 0.8729774998 | AN43: 0.8770977848 | AO43: 0.8780854659 | AP43: 0.8813825358 | AQ43: 0.881524228 | AR43: 0.8797339947 | AS43: 0.8894158744 | AT43: 0.8900301339 | AU43: 0
A44: Retail Credit | B44: 0.9617 | C44: 0.9596 | D44: 0.9629 | E44: 0.9691 | F44: 0.9774 | G44: 0.9811 | H44: 0.982 | I44: 0.9817 | J44: 0.9815 | K44: 0.9799 | L44: 0.9797218995 | M44: 0.9686 | N44: 0.9523 | O44: 0.9339 | P44: 0.9094 | Q44: 0.8927 | R44: 0.8717 | S44: 0.8415 | T44: 0.8196 | U44: 0.8166 | V44: 0.8057 | W44: 0.8162 | X44: 0.8046 | Y44: 0.8034 | Z44: 0.7737 | AA44: 0.7433 | AB44: 0.7075 | AC44: 0.6765 | AD44: 0.6347 | AE44: 0.5969 | AF44: 0.5685 | AG44: 0.5422 | AH44: 0.5242 | AI44: 0.512 | AJ44: 0.4981 | AK44: 0.4923 | AL44: 0.4029 | AM44: 0.3565445054 | AN44: 0.3124091913 | AO44: 0.2729453989 | AP44: 0.2279848709 | AQ44: 0.1883763198 | AR44: 0.1535200236 | AS44: 0.1284927403 | AT44: 0.1001551293 | AU44: 0
A46: >2<=3 months arrears
A47: Unsecured Personal Loans | B47: 0.0178 | C47: 0.0197 | D47: 0.0158 | E47: 0.0196 | F47: 0.0152 | G47: 0.0175 | H47: 0.013 | I47: 0.0126 | J47: 0.0103 | K47: 0.0117 | L47: 0.0107 | M47: 0.0103 | N47: 0.0114 | O47: 0.0139 | P47: 0.0143 | Q47: 0.0156 | R47: 0.0144 | S47: 0.0143 | T47: 0.0224 | U47: 0.0123 | V47: 0.0156 | W47: 0.0176 | X47: 0.0135 | Y47: 0.0188 | Z47: 0.0138 | AA47: 0.023 | AB47: 0.0076 | AC47: 0.0094 | AD47: 0.0227 | AE47: 0.0035 | AF47: 0.0124 | AG47: 0.0034 | AH47: 0.0153 | AI47: 0.004 | AJ47: 0.0242 | AK47: 0.0069 | AL47: 0.0195 | AM47: 0.01974593651 | AN47: 0.01990590485 | AO47: 0.02100874374 | AP47: 0.02750387804 | AQ47: 0.02527877807 | AR47: 0.0302765133 | AS47: 0.02566265887 | AT47: 0.03237029848 | AU47: 0
A48: Car Loans | B48: 0.0023 | C48: 0.0049 | D48: 0.0051 | E48: 0.0047 | F48: 0.0029 | G48: 0.0033 | H48: 0.0022 | I48: 0.0038 | J48: 0.0043 | K48: 0.0032 | L48: 0.005 | M48: 0.0073 | N48: 0.0054 | O48: 0.0095 | P48: 0.0079 | Q48: 0.0137 | R48: 0.0114 | S48: 0.0113 | T48: 0.0129 | U48: 0.0127 | V48: 0.0169 | W48: 0.0173 | X48: 0.0139 | Y48: 0.0185 | Z48: 0.0149 | AA48: 0.0214 | AB48: 0.0121 | AC48: 0.0034 | AD48: 0.0117 | AE48: 0.0047 | AF48: 0.0042 | AG48: 0.0071 | AH48: 0.0067 | AI48: 0.0144 | AJ48: 0 | AK48: 0.0349 | AL48: 0 | AM48: 0 | AN48: 0 | AO48: 0 | AP48: 0 | AQ48: 0 | AR48: 0 | AS48: 0 | AT48: 0 | AU48: 0
A49: Secured Loans | B49: 0.0128 | C49: 0.0139 | D49: 0.0163 | E49: 0.0154 | F49: 0.0179 | G49: 0.0168 | H49: 0.0161 | I49: 0.0174 | J49: 0.0141 | K49: 0.0125 | L49: 0.0139 | M49: 0.0149 | N49: 0.0156 | O49: 0.0155 | P49: 0.0145 | Q49: 0.0158 | R49: 0.019 | S49: 0.0238 | T49: 0.0189 | U49: 0.0238 | V49: 0.0212 | W49: 0.023 | X49: 0.0202 | Y49: 0.023 | Z49: 0.0247 | AA49: 0.0239 | AB49: 0.0199 | AC49: 0.0214 | AD49: 0.0213 | AE49: 0.021 | AF49: 0.0231 | AG49: 0.0249 | AH49: 0.0234 | AI49: 0.0212 | AJ49: 0.0183 | AK49: 0.0177 | AL49: 0.0179 | AM49: 0.01995026751 | AN49: 0.0170756731 | AO49: 0.01570755163 | AP49: 0.0128635697 | AQ49: 0.01237551574 | AR49: 0.01491195443 | AS49: 0.01158107645 | AT49: 0.01275982152 | AU49: 0
A50: Retail Credit | B50: 0.0039 | C50: 0.0048 | D50: 0.0035 | E50: 0.0037 | F50: 0.0025 | G50: 0.0029 | H50: 0.0019 | I50: 0.0022 | J50: 0.0018 | K50: 0.0021 | L50: 0.0022 | M50: 0.0033 | N50: 0.0051 | O50: 0.0058 | P50: 0.0087 | Q50: 0.0089 | R50: 0.0088 | S50: 0.0075 | T50: 0.0131 | U50: 0.0124 | V50: 0.0074 | W50: 0.0075 | X50: 0.0088 | Y50: 0.0049 | Z50: 0.0068 | AA50: 0.0103 | AB50: 0.0033 | AC50: 0.0037 | AD50: 0.0069 | AE50: 0.0083 | AF50: 0.0088 | AG50: 0.02 | AH50: 0.0113 | AI50: 0.0087 | AJ50: 0.0113 | AK50: 0.0142 | AL50: 0.0152 | AM50: 0.01452177795 | AN50: 0.01004808955 | AO50: 0.03793360581 | AP50: 0.01499840807 | AQ50: 0.01906032929 | AR50: 0.02241627527 | AS50: 0.02447944138 | AT50: 0.02637663958 | AU50: 0
A52: >3<=12 months arrears
A53: Unsecured Personal Loans | B53: 0.1422 | C53: 0.1492 | D53: 0.1555 | E53: 0.1438 | F53: 0.1312 | G53: 0.1203 | H53: 0.115 | I53: 0.095 | J53: 0.0894 | K53: 0.0828 | L53: 0.0857 | M53: 0.0878 | N53: 0.0913 | O53: 0.1042 | P53: 0.1195 | Q53: 0.1333 | R53: 0.1373 | S53: 0.137 | T53: 0.131 | U53: 0.1398 | V53: 0.1382 | W53: 0.1401 | X53: 0.1475 | Y53: 0.1456 | Z53: 0.1578 | AA53: 0.1596 | AB53: 0.1704 | AC53: 0.1422 | AD53: 0.1487 | AE53: 0.1642 | AF53: 0.1576 | AG53: 0.1692 | AH53: 0.1493 | AI53: 0.1597 | AJ53: 0.1555 | AK53: 0.1842 | AL53: 0.1679 | AM53: 0.1380791808 | AN53: 0.139959558 | AO53: 0.1282678302 | AP53: 0.1293683532 | AQ53: 0.1345293276 | AR53: 0.1314146012 | AS53: 0.1577454903 | AT53: 0.1441491431 | AU53: 0
A54: Car Loans | B54: 0.0084 | C54: 0.0087 | D54: 0.0098 | E54: 0.0133 | F54: 0.0082 | G54: 0.0102 | H54: 0.012 | I54: 0.012 | J54: 0.0078 | K54: 0.0082 | L54: 0.0122 | M54: 0.0133 | N54: 0.0145 | O54: 0.0186 | P54: 0.0272 | Q54: 0.0309 | R54: 0.0299 | S54: 0.0296 | T54: 0.0329 | U54: 0.0327 | V54: 0.0288 | W54: 0.0285 | X54: 0.0324 | Y54: 0.0281 | Z54: 0.0202 | AA54: 0.0266 | AB54: 0.0415 | AC54: 0.0741 | AD54: 0.0572 | AE54: 0.0356 | AF54: 0.0225 | AG54: 0.0078 | AH54: 0.0278 | AI54: 0.0059 | AJ54: 0.0102 | AK54: 0.0115 | AL54: 0.0567 | AM54: 0.06395570953 | AN54: 0.07875006965 | AO54: 0.03797805767 | AP54: 0.04203481721 | AQ54: 0.04569026383 | AR54: 0.05089561102 | AS54: 0.05539883344 | AT54: 0.01082278537 | AU54: 0
A55: Secured Loans | B55: 0.0339 | C55: 0.0352 | D55: 0.0347 | E55: 0.0431 | F55: 0.0527 | G55: 0.0523 | H55: 0.052 | I55: 0.05 | J55: 0.0464 | K55: 0.042 | L55: 0.0343 | M55: 0.0323 | N55: 0.0301 | O55: 0.0331 | P55: 0.0407 | Q55: 0.045 | R55: 0.0536 | S55: 0.0606 | T55: 0.0608 | U55: 0.0608 | V55: 0.0592 | W55: 0.0685 | X55: 0.0738 | Y55: 0.0787 | Z55: 0.0802 | AA55: 0.0792 | AB55: 0.0806 | AC55: 0.0828 | AD55: 0.0807 | AE55: 0.0873 | AF55: 0.0871 | AG55: 0.0856 | AH55: 0.0875 | AI55: 0.0896 | AJ55: 0.0886 | AK55: 0.0882 | AL55: 0.0881 | AM55: 0.08406406634 | AN55: 0.08333558736 | AO55: 0.0804715686 | AP55: 0.08285589556 | AQ55: 0.08566846302 | AR55: 0.08156298372 | AS55: 0.0783639167 | AT55: 0.07694989588 | AU55: 0
A56: Retail Credit | B56: 0.0303 | C56: 0.0313 | D56: 0.0293 | E56: 0.0234 | F56: 0.0171 | G56: 0.0133 | H56: 0.0143 | I56: 0.0134 | J56: 0.0144 | K56: 0.015 | L56: 0.0158 | M56: 0.0236 | N56: 0.0368 | O56: 0.0553 | P56: 0.073 | Q56: 0.0922 | R56: 0.11 | S56: 0.1385 | T56: 0.1576 | U56: 0.164 | V56: 0.1754 | W56: 0.1677 | X56: 0.1693 | Y56: 0.1893 | Z56: 0.2085 | AA56: 0.2369 | AB56: 0.2757 | AC56: 0.3159 | AD56: 0.3494 | AE56: 0.3895 | AF56: 0.4166 | AG56: 0.4358 | AH56: 0.462 | AI56: 0.4751 | AJ56: 0.4847 | AK56: 0.4861 | AL56: 0.5365 | AM56: 0.5974193562 | AN56: 0.6440155846 | AO56: 0.6802136499 | AP56: 0.7374188269 | AQ56: 0.7767834729 | AR56: 0.8081814647 | AS56: 0.8332502362 | AT56: 0.858769257 | AU56: 0
A58: Movement into the >12 months arrears
A59: Unsecured Personal Loans | B59: 2090 | C59: 1355 | D59: 941 | E59: -330 | F59: 645 | G59: 650 | H59: 489 | I59: 636 | J59: 281 | K59: 193 | L59: -9 | M59: 191 | N59: -303 | O59: 132 | P59: 312 | Q59: 140 | R59: 212 | S59: 169 | T59: -1856 | U59: 125 | V59: -64 | W59: 24 | X59: -225 | Y59: -35 | Z59: -58 | AA59: -40 | AB59: -61 | AC59: -115 | AD59: -59 | AE59: -68 | AF59: -44 | AG59: -153 | AH59: -82 | AI59: -52 | AJ59: -24 | AK59: -62 | AL59: -57 | AM59: -8 | AN59: -44 | AO59: -47 | AP59: -109 | AQ59: -65 | AR59: -95 | AS59: -79 | AT59: -36 | AU59: -94
A60: Car Loans | B60: 260 | C60: 0 | D60: 119 | E60: 17 | F60: 27 | G60: 23 | H60: 99 | I60: -140 | J60: 139 | K60: 1 | L60: -161 | M60: -78 | N60: -17 | O60: -45 | P60: 69 | Q60: 162 | R60: 167 | S60: 75 | T60: 56 | U60: 24 | V60: -125 | W60: -130 | X60: -44 | Y60: 38 | Z60: 18 | AA60: 6 | AB60: -29 | AC60: -38 | AD60: -8 | AE60: -8 | AF60: 22 | AG60: 17 | AH60: -7 | AI60: -47 | AJ60: -40 | AK60: -34 | AL60: -47 | AM60: -132 | AN60: -19 | AO60: -12 | AP60: 0 | AQ60: -8 | AR60: 0 | AS60: 0 | AT60: -37 | AU60: 0
A61: Secured Loans | B61: 186 | C61: 156 | D61: 427 | E61: 227 | F61: 25 | G61: -153 | H61: -15 | I61: 406 | J61: 93 | K61: 123 | L61: 386 | M61: 163 | N61: 164 | O61: 295 | P61: -844 | Q61: 441 | R61: -380 | S61: 641 | T61: 200 | U61: 387 | V61: 91 | W61: 72 | X61: 812 | Y61: 527 | Z61: 111 | AA61: 803 | AB61: 273 | AC61: 237 | AD61: 278 | AE61: 482 | AF61: 669 | AG61: 682 | AH61: -53 | AI61: 489 | AJ61: 258 | AK61: -181 | AL61: -245 | AM61: 178 | AN61: 56 | AO61: -197 | AP61: 94 | AQ61: -200 | AR61: -422 | AS61: -145 | AT61: -141 | AU61: -298
A62: Retail Credit | B62: 88 | C62: 1 | D62: 82 | E62: 88 | F62: 58 | G62: 80 | H62: 53 | I62: 51 | J62: 68 | K62: 52 | L62: 61 | M62: 70 | N62: 113 | O62: 128 | P62: 94 | Q62: 144 | R62: 148 | S62: 80 | T62: -232 | U62: 117 | V62: 15 | W62: 3 | X62: 8 | Y62: 42 | Z62: -11 | AA62: 1 | AB62: -52 | AC62: -51 | AD62: -10 | AE62: 3 | AF62: -16 | AG62: -9 | AH62: -39 | AI62: -10 | AJ62: -25 | AK62: -32 | AL62: -22 | AM62: -27 | AN62: -28 | AO62: -14 | AP62: -15 | AQ62: -10 | AR62: -41 | AS62: -37 | AT62: -9 | AU62: -29
A64: Quarterly Losses
A65: Unsecured Personal Loans | B65: 521 | C65: 484 | D65: 630 | E65: 2746 | F65: 732 | G65: 679 | H65: 605 | I65: 706 | J65: 564 | K65: 548 | L65: 899 | M65: 413 | N65: 1851 | O65: 85 | P65: 59 | Q65: 60 | R65: 57 | S65: 85 | T65: 1952 | U65: 90 | V65: 434 | W65: 50 | X65: 372 | Y65: 105 | Z65: 77 | AA65: 62 | AB65: 47 | AC65: 202 | AD65: 69 | AE65: 77 | AF65: 29 | AG65: 84 | AH65: 34 | AI65: 28 | AJ65: 25 | AK65: 30 | AL65: 39 | AM65: 32 | AN65: 10 | AO65: 29 | AP65: 56 | AQ65: 19 | AR65: 47 | AS65: 9 | AT65: 3 | AU65: 29
A66: Car Loans | B66: 1642 | C66: 1481 | D66: 1914 | E66: 2407 | F66: 2599 | G66: 2368 | H66: 1320 | I66: 881 | J66: 736 | K66: 780 | L66: 836 | M66: 956 | N66: 1268 | O66: 1165 | P66: 1016 | Q66: 1188 | R66: 852 | S66: 639 | T66: 587 | U66: 730 | V66: 772 | W66: 665 | X66: 411 | Y66: 273 | Z66: 231 | AA66: 171 | AB66: 165 | AC66: 158 | AD66: 87 | AE66: 31 | AF66: 17 | AG66: -2 | AH66: 7 | AI66: 27 | AJ66: 51 | AK66: 48 | AL66: 45 | AM66: 131 | AN66: 0 | AO66: 18 | AP66: 0 | AQ66: 7 | AR66: 0 | AS66: 0 | AT66: 42 | AU66: 0
A67: Secured Loans | B67: 541 | C67: 432 | D67: 457 | E67: 474 | F67: 586 | G67: 655 | H67: 404 | I67: 663 | J67: 484 | K67: 609 | L67: 805 | M67: 627 | N67: 999 | O67: 646 | P67: 1556 | Q67: 1440 | R67: 1884 | S67: 945 | T67: 1570 | U67: 1072 | V67: 1881 | W67: 734 | X67: 633 | Y67: 650 | Z67: 959 | AA67: 796 | AB67: 654 | AC67: 775 | AD67: 759 | AE67: 571 | AF67: 810 | AG67: 497 | AH67: 777 | AI67: 382 | AJ67: 685 | AK67: 426 | AL67: 569 | AM67: 261 | AN67: 189 | AO67: 183 | AP67: 236 | AQ67: 157 | AR67: 387 | AS67: 413 | AT67: 220 | AU67: 238
A68: Retail Credit | B68: 583 | C68: 20 | D68: 0 | E68: 0 | F68: 0 | G68: 0 | H68: 0 | I68: 0 | J68: 0 | K68: 0 | L68: 0 | M68: 0 | N68: 0 | O68: 0 | P68: 0 | Q68: 0 | R68: 0 | S68: 0 | T68: 0 | U68: 0 | V68: 0 | W68: 0 | X68: 0 | Y68: 11 | Z68: 0 | AA68: 0 | AB68: 0 | AC68: 0 | AD68: 0 | AE68: 0 | AF68: 0 | AG68: 0 | AH68: 0 | AI68: 0 | AJ68: 0 | AK68: 0 | AL68: 0 | AM68: 0 | AN68: 0 | AO68: 0 | AP68: 0 | AQ68: 0 | AR68: 0 | AS68: 0 | AT68: 0 | AU68: 0
B70: 2005-09-30 | C70: 2005-12-31 | D70: 2006-03-31 | E70: 2006-06-30 | F70: 2006-09-29 | G70: 2006-12-29 | H70: 2007-03-30 | I70: 2007-06-29 | J70: 2007-09-28 | K70: 2007-12-31 | L70: 2008-03-31 | M70: 2008-06-30 | N70: 2008-09-30 | O70: 2008-12-31 | P70: 2009-03-31 | Q70: 2009-06-30 | R70: 2009-09-30 | S70: 2009-12-31 | T70: 2010-03-31 | U70: 2010-06-30 | V70: 2010-09-30 | W70: 2010-12-31 | X70: 2011-03-31 | Y70: 2011-06-30 | Z70: 2011-09-30 | AA70: 2011-12-30 | AB70: 2012-03-30 | AC70: 2012-06-29 | AD70: 2012-09-28 | AE70: 2012-12-31 | AF70: 2013-03-28 | AG70: 2013-06-28 | AH70: 2013-09-30 | AI70: 2013-12-31 | AJ70: 2014-03-31 | AK70: 2014-06-30 | AL70: 2014-09-30 | AM70: 2014-12-31 | AN70: 2015-03-31 | AO70: 2015-06-30 | AP70: =+AP5 -> 2015-09-30 | AQ70: 2015-12-31 | AR70: 2016-03-31 | AS70: 2016-06-30 | AT70: 2016-09-30 | AU70: 2016-12-30
A71: Lifetime Redemption Rate
A72: Unsecured Personal Loans | B72: 0.2797 | C72: 0.2738 | D72: 0.268 | E72: 0.2691 | F72: 0.2712 | G72: 0.2796 | H72: 0.2919 | I72: 0.2985 | J72: 0.3072 | K72: 0.3189 | L72: 0.3303 | M72: 0.3385 | N72: 0.3421 | O72: 0.3444 | P72: 0.3462 | Q72: 0.3475 | R72: 0.3476 | S72: 0.3468 | T72: 0.3471 | U72: 0.3464 | V72: 0.3457 | W72: 0.3461 | X72: 0.3451 | Y72: 0.3446 | Z72: 0.3437 | AA72: 0.3424 | AB72: 0.3393 | AC72: 0.3372 | AD72: 0.3351 | AE72: 0.333 | AF72: 0.3304 | AG72: 0.3286 | AH72: 0.3322 | AI72: 0.3305 | AJ72: 0.3292 | AK72: 0.3274 | AL72: 0.3266 | AM72: 0.3255 | AN72: 0.3252 | AO72: 0.3245 | AP72: 0.325 | AQ72: 0.3262 | AR72: 0.3281 | AS72: 0.3297 | AT72: 0.3304 | AU72: 1
A73: Car Loans | B73: 0.4569 | C73: 0.4438 | D73: 0.4355 | E73: 0.4343 | F73: 0.4284 | G73: 0.4205 | H73: 0.4165 | I73: 0.4155 | J73: 0.4133 | K73: 0.4121 | L73: 0.4107 | M73: 0.4123 | N73: 0.4111 | O73: 0.4078 | P73: 0.406 | Q73: 0.4074 | R73: 0.4101 | S73: 0.4126 | T73: 0.4167 | U73: 0.4241 | V73: 0.4328 | W73: 0.4403 | X73: 0.4471 | Y73: 0.4568 | Z73: 0.4664 | AA73: 0.4732 | AB73: 0.4795 | AC73: 0.4896 | AD73: 0.4943 | AE73: 0.4948 | AF73: 0.4913 | AG73: 0.4875 | AH73: 0.4879 | AI73: 0.4862 | AJ73: 0.4835 | AK73: 0.4844 | AL73: 0.4865 | AM73: 0.4846 | AN73: 0.4894 | AO73: 0.4888 | AP73: 0.487 | AQ73: 0.486 | AR73: 0.4864 | AS73: 0.486 | AT73: 0.4886 | AU73: 1
A74: Secured Loans | B74: 0.4188 | C74: 0.3896 | D74: 0.3742 | E74: 0.3707 | F74: 0.3703 | G74: 0.371 | H74: 0.3671 | I74: 0.3649 | J74: 0.3631 | K74: 0.3605 | L74: 0.353 | M74: 0.343 | N74: 0.3319 | O74: 0.3188 | P74: 0.3068 | Q74: 0.297 | R74: 0.2887 | S74: 0.282 | T74: 0.2756 | U74: 0.2699 | V74: 0.265 | W74: 0.2598 | X74: 0.2548 | Y74: 0.2508 | Z74: 0.2469 | AA74: 0.2431 | AB74: 0.2396 | AC74: 0.2362 | AD74: 0.2329 | AE74: 0.2298 | AF74: 0.2265 | AG74: 0.2236 | AH74: 0.2214 | AI74: 0.2193 | AJ74: 0.2172 | AK74: 0.2155 | AL74: 0.2141 | AM74: 0.2123 | AN74: 0.2111 | AO74: 0.2097 | AP74: 0.2084 | AQ74: 0.2079 | AR74: 0.2067 | AS74: 0.206 | AT74: 0.2056 | AU74: 1
A75: Retail Credit | B75: 0.6163 | C75: 0.6523 | D75: 0.6657 | E75: 0.6914 | F75: 0.6942 | G75: 0.6885 | H75: 0.692 | I75: 0.6943 | J75: 0.6976 | K75: 0.6966 | L75: 0.6987 | M75: 0.7058 | N75: 0.7136 | O75: 0.7179 | P75: 0.7144 | Q75: 0.7113 | R75: 0.7075 | S75: 0.7016 | T75: 0.6979 | U75: 0.6893 | V75: 0.6848 | W75: 0.6813 | X75: 0.6774 | Y75: 0.6699 | Z75: 0.6632 | AA75: 0.6537 | AB75: 0.6541 | AC75: 0.6543 | AD75: 0.652 | AE75: 0.6464 | AF75: 0.6417 | AG75: 0.6353 | AH75: 0.6342 | AI75: 0.6292 | AJ75: 0.6268 | AK75: 0.6277 | AL75: 0.6251 | AM75: 0.6233 | AN75: 0.6229 | AO75: 0.6205 | AP75: 0.6202 | AQ75: 0.6163 | AR75: 0.6243 | AS75: 0.6295 | AT75: 0.6262 | AU75: 1
A77: W A Interest Charging Rate
A78: Unsecured Personal Loans | B78: 0.1457 | C78: 0.14465 | D78: 0.14478 | E78: 0.14474 | F78: 0.15316 | G78: 0.15778 | H78: 0.1599 | I78: 0.16392 | J78: 0.1667 | K78: 0.16645 | L78: 0.16308 | M78: 0.16093 | N78: 0.15403 | O78: 0.14625 | P78: 0.14367 | Q78: 0.14215 | R78: 0.14058 | S78: 0.13806 | T78: 0.13598 | U78: 0.13458 | V78: 0.13155 | W78: 0.12648 | X78: 0.11778 | Y78: 0.11492 | Z78: 0.11258 | AA78: 0.11058 | AB78: 0.10799 | AC78: 0.10925 | AD78: 0.1052 | AE78: 0.10689 | AF78: 0.1047 | AG78: 0.10248 | AH78: 0.09745 | AI78: 0.09401 | AJ78: 0.09132 | AK78: 0.08859 | AL78: 0.08269 | AM78: 0.08160864812 | AN78: 0.07857263117 | AO78: 0.07441743607 | AP78: 0.06937820663 | AQ78: 0.06540747006 | AR78: 0.06114539593 | AS78: 0.05496039788 | AT78: 0.04990656721 | AU78: 0
A79: Car Loans | B79: 0.0978 | C79: 0.09738 | D79: 0.09675 | E79: 0.09636 | F79: 0.09565 | G79: 0.0957 | H79: 0.0959 | I79: 0.09656 | J79: 0.09732 | K79: 0.09799 | L79: 0.09829 | M79: 0.09835 | N79: 0.0984 | O79: 0.09848 | P79: 0.09863 | Q79: 0.09872 | R79: 0.09891 | S79: 0.09923 | T79: 0.09946 | U79: 0.09952 | V79: 0.09946 | W79: 0.09928 | X79: 0.09934 | Y79: 0.09938 | Z79: 0.09883 | AA79: 0.09908 | AB79: 0.0987 | AC79: 0.09796 | AD79: 0.09671 | AE79: 0.0951 | AF79: 0.09426 | AG79: 0.09421 | AH79: 0.09459 | AI79: 0.09468 | AJ79: 0.09492 | AK79: 0.09488 | AL79: 0.09559 | AM79: 0.09592013699 | AN79: 0.09580096702 | AO79: 0.09655525151 | AP79: 0.09715371983 | AQ79: 0.09784512505 | AR79: 0.09845470202 | AS79: 0.09670344573 | AT79: 0.09824202895 | AU79: 0
A80: Secured Loans | B80: 0.0956 | C80: 0.09231 | D80: 0.09082 | E80: 0.08923 | F80: 0.08894 | G80: 0.08894 | H80: 0.09161 | I80: 0.09077 | J80: 0.09709 | K80: 0.1054 | L80: 0.10338 | M80: 0.1018 | N80: 0.10079 | O80: 0.10066 | P80: 0.09146 | Q80: 0.09138 | R80: 0.09133 | S80: 0.09128 | T80: 0.09123 | U80: 0.0912 | V80: 0.09117 | W80: 0.09112 | X80: 0.09111 | Y80: 0.09114 | Z80: 0.09117 | AA80: 0.0912 | AB80: 0.0912 | AC80: 0.09124 | AD80: 0.0913 | AE80: 0.0912 | AF80: 0.0912 | AG80: 0.0911 | AH80: 0.091 | AI80: 0.091 | AJ80: 0.091 | AK80: 0.091 | AL80: 0.091 | AM80: 0.09099752714 | AN80: 0.09094859919 | AO80: 0.09089078537 | AP80: 0.09081454384 | AQ80: 0.09075310427 | AR80: 0.09067684965 | AS80: 0.09045699323 | AT80: 0.09048407005 | AU80: 0
A81: Retail Credit | B81: 0.1098 | C81: 0.11075 | D81: 0.11358 | E81: 0.11787 | F81: 0.12386 | G81: 0.127 | H81: 0.12534 | I81: 0.12363 | J81: 0.12133 | K81: 0.12237 | L81: 0.11942 | M81: 0.11787 | N81: 0.11352 | O81: 0.11022 | P81: 0.11267 | Q81: 0.11678 | R81: 0.12045 | S81: 0.12377 | T81: 0.12524 | U81: 0.12263 | V81: 0.12213 | W81: 0.12107 | X81: 0.12126 | Y81: 0.11909 | Z81: 0.11899 | AA81: 0.12011 | AB81: 0.11949 | AC81: 0.12094 | AD81: 0.12202 | AE81: 0.12164 | AF81: 0.11919 | AG81: 0.11682 | AH81: 0.11585 | AI81: 0.11354 | AJ81: 0.11322 | AK81: 0.11519 | AL81: 0.11611 | AM81: 0.1173693514 | AN81: 0.1203064264 | AO81: 0.1205046701 | AP81: 0.121910923 | AQ81: 0.1251571674 | AR81: 0.1224672757 | AS81: 0.1246922195 | AT81: 0.120583174 | AU81: 0
A83: WA LTV - Secured Loans | B83: 0.8895 | C83: 0.9012 | D83: 0.8968 | E83: 0.9117 | F83: 0.9121 | G83: 0.9229 | H83: 0.9181 | I83: 0.9153 | J83: 0.9107 | K83: 0.9044 | L83: 0.8858 | M83: 0.8702 | N83: 0.8505 | O83: 0.8286 | P83: 0.7943 | Q83: 0.8108 | R83: 0.7929 | S83: 0.7941 | T83: 0.7947 | U83: 0.7961 | V83: 0.8006 | W83: 0.8009 | X83: 0.8021 | Y83: 0.8025 | Z83: 0.8036 | AA83: 0.8041 | AB83: 0.8044 | AC83: 0.8042 | AD83: 0.804 | AE83: 0.8039 | AF83: 0.8026 | AG83: 0.8032 | AH83: 0.8025 | AI83: 0.8039 | AJ83: 0.8021 | AK83: 0.8019 | AL83: 0.8009 | AM83: 0.8004492185 | AN83: 0.799044288 | AO83: 0.7976195054 | AP83: 0.7962079041 | AQ83: 0.7967607692 | AR83: 0.7958217355 | AS83: 0.7901510519 | AT83: 0.8002670417 | AU83: 0
A84: % of Secured Loans over 100% LTV | B84: 0.2884 | C84: 0.3155 | D84: 0.3134 | E84: 0.3439 | F84: 0.35 | G84: 0.3648 | H84: 0.3533 | I84: 0.3496 | J84: 0.3466 | K84: 0.3415 | L84: 0.3005 | M84: 0.2632 | N84: 0.2289 | O84: 0.2038 | P84: 0.1575 | Q84: 0.182 | R84: 0.1529 | S84: 0.1537 | T84: 0.1527 | U84: 0.1523 | V84: 0.153 | W84: 0.1545 | X84: 0.1549 | Y84: 0.1552 | Z84: 0.1567 | AA84: 0.1553 | AB84: 0.1559 | AC84: 0.1557 | AD84: 0.1557 | AE84: 0.1555 | AF84: 0.1548 | AG84: 0.1552 | AH84: 0.1533 | AI84: 0.1549 | AJ84: 0.1532 | AK84: 0.1528 | AL84: 0.1517 | AM84: 0.1500035374 | AN84: 0.1488414038 | AO84: 0.1458277424 | AP84: 0.1457291331 | AQ84: 0.1452543501 | AR84: 0.1454686219 | AS84: 0.1437907922 | AT84: 0.1786427876 | AU84: 0
A86: WA Loan Size
A87: Unsecured Personal Loans | B87: 4887 | C87: 4774 | D87: 4669.42 | E87: 4537.87 | F87: 4489.82 | G87: 4388 | H87: 4211.73 | I87: 4124.76 | J87: 4094.09 | K87: 3915.83 | L87: 3704.4 | M87: 3512.62 | N87: 3162.18 | O87: 3096.05 | P87: 3038.13 | Q87: 2966 | R87: 2939.48 | S87: 2862.03 | T87: 2806.6 | U87: 2723.32 | V87: 2689.37 | W87: 2647.32 | X87: 2680.97 | Y87: 2785.42 | Z87: 2918.06 | AA87: 3136.68 | AB87: 3293.38 | AC87: 3405.83 | AD87: 3479.55 | AE87: 3461.86 | AF87: 3485.12 | AG87: 3510.46 | AH87: 3333.51 | AI87: 3277.03 | AJ87: 3165.44 | AK87: 3097.43 | AL87: 3027.45 | AM87: 2984.031045 | AN87: 2947.473168 | AO87: 2859.367384 | AP87: 2760.38156 | AQ87: 2674.785245 | AR87: 2681.800186 | AS87: 2747.961556 | AT87: 2777.002286 | AU87: 0
A88: Car Loans | B88: 6651 | C88: 7189 | D88: 7659.21 | E88: 7958.48 | F88: 9021.65 | G88: 9983 | H88: 10676.48 | I88: 11481.95 | J88: 12264.15 | K88: 12784.15 | L88: 12991.65 | M88: 12811.75 | N88: 12623.75 | O88: 12478.94 | P88: 12342.91 | Q88: 12209.69 | R88: 11954.38 | S88: 11729.61 | T88: 11459.23 | U88: 11339.53 | V88: 11041.98 | W88: 10727.65 | X88: 10409.66 | Y88: 10220.99 | Z88: 9932.22 | AA88: 9734.19 | AB88: 9281.7 | AC88: 9157.3 | AD88: 9585.42 | AE88: 10134.51 | AF88: 9981.62 | AG88: 9549.79 | AH88: 8867.65 | AI88: 8644.24 | AJ88: 8349.19 | AK88: 7615.25 | AL88: 7254.9 | AM88: 7064.957879 | AN88: 6762.291071 | AO88: 6003.903774 | AP88: 5770.818936 | AQ88: 5721.670488 | AR88: 5325.686216 | AS88: 4949.541471 | AT88: 4960.794615 | AU88: 0
A89: Secured Loans | B89: 24572 | C89: 25316 | D89: 25699.71 | E89: 26558.27 | F89: 27313.29 | G89: 27855 | H89: 27982.63 | I89: 28186.72 | J89: 28471.29 | K89: 28305.73 | L89: 27337.34 | M89: 27107.05 | N89: 27064.02 | O89: 27168.47 | P89: 27205.9 | Q89: 27017.6 | R89: 26797.81 | S89: 26514.81 | T89: 26138.93 | U89: 25935.46 | V89: 25592.52 | W89: 25324.98 | X89: 25081.46 | Y89: 24745.58 | Z89: 24525.36 | AA89: 24196.81 | AB89: 23902.1 | AC89: 23554.06 | AD89: 23231.7 | AE89: 23019.15 | AF89: 22911.49 | AG89: 22786.3 | AH89: 22749.3 | AI89: 22548.26 | AJ89: 22356.02 | AK89: 22242.49 | AL89: 22021.78 | AM89: 21825.31484 | AN89: 21530.31324 | AO89: 21336.05554 | AP89: 21206.80543 | AQ89: 21000.44713 | AR89: 20770.65109 | AS89: 20522.13665 | AT89: 20205.8981 | AU89: 0
A90: Retail Credit | B90: 862 | C90: 929 | D90: 973.72 | E90: 943.69 | F90: 1048.2 | G90: 1147 | H90: 1125.01 | I90: 1115.75 | J90: 1101.68 | K90: 1125.75 | L90: 1100.36 | M90: 979.53 | N90: 874.61 | O90: 893.08 | P90: 857.78 | Q90: 819.68 | R90: 821.63 | S90: 913.75 | T90: 1014.05 | U90: 955.21 | V90: 938.05 | W90: 982.34 | X90: 1022.21 | Y90: 1015.19 | Z90: 1043.99 | AA90: 1050.54 | AB90: 998.01 | AC90: 991.34 | AD90: 1001.66 | AE90: 1093.46 | AF90: 1170.88 | AG90: 1163.53 | AH90: 1136.97 | AI90: 1131.67 | AJ90: 1082.9 | AK90: 1010.88 | AL90: 964.57 | AM90: 911.0605702 | AN90: 865.1087892 | AO90: 804.5055963 | AP90: 755.8524121 | AQ90: 766.1108108 | AR90: 789.7941212 | AS90: 773.922284 | AT90: 760.4480645 | AU90: 0
A92: WA Seasoning (months)
A93: Unsecured Personal Loans | B93: 71.9 | C93: 75.04 | D93: 78.55 | E93: 81.82 | F93: 74.63 | G93: 71.36 | H93: 70.84 | I93: 67.15 | J93: 65.28 | K93: 69.44 | L93: 74.12 | M93: 80.1 | N93: 81.03 | O93: 85.75 | P93: 89.78 | Q93: 94.16 | R93: 95.48 | S93: 102.7 | T93: 104.06 | U93: 110.83 | V93: 114.9 | W93: 119.63 | X93: 122 | Y93: 127.01 | Z93: 131.65 | AA93: 136.07 | AB93: 140.66 | AC93: 143.73 | AD93: 147.6 | AE93: 151.54 | AF93: 156 | AG93: 160.62 | AH93: 164.04 | AI93: 169.05 | AJ93: 173.81 | AK93: 178.98 | AL93: 183.69 | AM93: 188.6668687 | AN93: 194.667481 | AO93: 199.7306601 | AP93: 206.1826504 | AQ93: 212.511669 | AR93: 219.9505156 | AS93: 226.8885787 | AT93: 234.6971075 | AU93: 0
A94: Car Loans | B94: 16.79 | C94: 16.16 | D94: 16.14 | E94: 16.98 | F94: 15.64 | G94: 14.66 | H94: 15.06 | I94: 15.08 | J94: 15.46 | K94: 16.52 | L94: 18.53 | M94: 20.92 | N94: 23.32 | O94: 25.7 | P94: 28.14 | Q94: 30.56 | R94: 32.93 | S94: 35.37 | T94: 37.89 | U94: 40.19 | V94: 42.89 | W94: 45.52 | X94: 48.26 | Y94: 50.87 | Z94: 53.96 | AA94: 57.02 | AB94: 59.97 | AC94: 62.99 | AD94: 66.23 | AE94: 69.37 | AF94: 71.76 | AG94: 74.48 | AH94: 76.9 | AI94: 79.31 | AJ94: 81.36 | AK94: 83.81 | AL94: 84.57 | AM94: 85.85641073 | AN94: 86.59965148 | AO94: 86.41629547 | AP94: 86.63405419 | AQ94: 86.52991952 | AR94: 85.26324256 | AS94: 86.9655999 | AT94: 74.64071699 | AU94: 0
A95: Secured Loans | B95: 18.7 | C95: 18.07 | D95: 19.21 | E95: 19.92 | F95: 22.58 | G95: 21.46 | H95: 21.39 | I95: 21.86 | J95: 21.75 | K95: 21.75 | L95: 20.05 | M95: 19.53 | N95: 19.22 | O95: 19.65 | P95: 20.3 | Q95: 23.01 | R95: 26.03 | S95: 29.08 | T95: 32.18 | U95: 35.28 | V95: 38.51 | W95: 41.58 | X95: 44.68 | Y95: 47.8 | Z95: 50.9 | AA95: 53.94 | AB95: 57.06 | AC95: 60.1 | AD95: 63.16 | AE95: 66.17 | AF95: 69.27 | AG95: 72.27 | AH95: 75.32 | AI95: 78.4 | AJ95: 81.29 | AK95: 84.32 | AL95: 87.28 | AM95: 90.22586536 | AN95: 93.11521791 | AO95: 96.07062307 | AP95: 99.09026822 | AQ95: 102.0784102 | AR95: 105.144185 | AS95: 108.4225729 | AT95: 111.4810319 | AU95: 0
A96: Retail Credit | B96: 10.1 | C96: 9.12 | D96: 8.16 | E96: 9.12 | F96: 6.98 | G96: 5.62 | H96: 5.64 | I96: 5.61 | J96: 5.98 | K96: 5.96 | L96: 6.56 | M96: 9.43 | N96: 12.99 | O96: 16.84 | P96: 19.85 | Q96: 22.84 | R96: 26.06 | S96: 29.2 | T96: 32.02 | U96: 34.83 | V96: 37.75 | W96: 40.6 | X96: 42.91 | Y96: 45.27 | Z96: 47.48 | AA96: 49.82 | AB96: 51.96 | AC96: 53.63 | AD96: 54.88 | AE96: 56.29 | AF96: 57.32 | AG96: 58.15 | AH96: 57.48 | AI96: 56.72 | AJ96: 57.42 | AK96: 57.68 | AL96: 56.83 | AM96: 54.73522843 | AN96: 52.74237642 | AO96: 50.33759306 | AP96: 43.37171371 | AQ96: 40.33029023 | AR96: 37.11782173 | AS96: 32.28053316 | AT96: 31.91004378 | AU96: 0
A98: Type of Car Finance Contract
A99: Hire Purchase Agreement | B99: 0.477 | C99: 0.4303 | D99: 0.3954 | E99: 0.3635 | F99: 0.3226 | G99: 0.2964 | H99: 0.274 | I99: 0.2548 | J99: 0.2431 | K99: 0.239 | L99: 0.2345 | M99: 0.2291 | N99: 0.2228 | O99: 0.2142 | P99: 0.2095 | Q99: 0.2079 | R99: 0.2101 | S99: 0.2089 | T99: 0.2137 | U99: 0.2208 | V99: 0.242 | W99: 0.2644 | X99: 0.29 | Y99: 0.3335 | Z99: 0.3999 | AA99: 0.4698 | AB99: 0.532 | AC99: 0.6197 | AD99: 0.7209 | AE99: 0.8048 | AF99: 0.828 | AG99: 0.8609 | AH99: 0.8657 | AI99: 0.8762 | AJ99: 0.8757 | AK99: 0.8891 | AL99: 0.8694 | AM99: 0.8578492458 | AN99: 0.8275413315 | AO99: 0.7859338374 | AP99: 0.7575197207 | AQ99: 0.726853436 | AR99: 0.6789414119 | AS99: 0.6289877951 | AT99: 0.5686657209 | AU99: 0
A100: Personal Contract Purchase Agreement | B100: 0.0004 | C100: 0.0004 | D100: 0.0003 | E100: 0.0002 | F100: 0.0001 | G100: 0.0001 | H100: 0.0001 | I100: 0.0001 | J100: 0.0001 | K100: 0.0001 | L100: 0 | M100: 0 | N100: 0 | O100: 0 | P100: 0 | Q100: 0 | R100: 0 | S100: 0 | T100: 0 | U100: 0 | V100: 0 | W100: 0 | X100: 0 | Y100: 0 | Z100: 0 | AA100: 0 | AB100: 0 | AC100: 0 | AD100: 0 | AE100: 0 | AF100: 0 | AG100: 0 | AH100: 0 | AI100: 0 | AJ100: 0 | AK100: 0 | AL100: 0 | AM100: 0 | AN100: 0 | AO100: 0 | AP100: 0 | AQ100: 0 | AR100: 0 | AS100: 0 | AT100: 0 | AU100: 0
A101: Conditional Sale Agreement | B101: 0.5226 | C101: 0.5694 | D101: 0.6043 | E101: 0.6363 | F101: 0.6773 | G101: 0.7036 | H101: 0.7259 | I101: 0.7451 | J101: 0.7568 | K101: 0.7609 | L101: 0.7655 | M101: 0.7709 | N101: 0.7772 | O101: 0.7858 | P101: 0.7905 | Q101: 0.7921 | R101: 0.7899 | S101: 0.7911 | T101: 0.7863 | U101: 0.7792 | V101: 0.758 | W101: 0.7356 | X101: 0.71 | Y101: 0.6665 | Z101: 0.6001 | AA101: 0.5302 | AB101: 0.468 | AC101: 0.3803 | AD101: 0.2791 | AE101: 0.1952 | AF101: 0.172 | AG101: 0.1391 | AH101: 0.1343 | AI101: 0.1238 | AJ101: 0.1243 | AK101: 0.1109 | AL101: 0.1306 | AM101: 0.1421507542 | AN101: 0.1724586685 | AO101: 0.2140661626 | AP101: 0.2424802793 | AQ101: 0.273146564 | AR101: 0.3210585881 | AS101: 0.3710122049 | AT101: 0.4313342791 | AU101: 0

Sheet Graphs
S2: PARAGON PERSONAL AND AUTO FINANCE (NO.3) PLC
